[Event "1st Sakatam Open 2024"]
[Site "Guwahati"]
[Date "2024.03.27"]
[Round "8.6"]
[White "Snehaal Roy"]
[Black "Chandreyee, Hajra"]
[Result "0-1"]
[ECO "B90"]
[WhiteElo "1738"]
[BlackElo "1912"]
[Annotator "RC"]
[PlyCount "74"]
[EventDate "2024.03.24"]
[EventType "swiss"]
[EventCountry "IND"]
[SourceTitle "playchess.com"]
[Source "ChessBase"]
[SourceQuality "1"]
[TimeControl "5400+30"]

1. e4 {[%emt 0:02:09]} c5 {[%emt 0:00:45]} 2. Nf3 {[%emt 0:00:28]} d6 {[%emt 0:00:07]} 3. d4 {[%emt 0:00:20]} cxd4 {[%emt 0:00:05]} 4. Nxd4 {[%emt 0:00:07]} Nf6 {[%emt 0:00:04]} 5. Nc3 {[%emt 0:00:09]} a6 {[%emt 0:00:28]} 6. f3 {[%emt 0:03:38]} e5 {[%emt 0:00:11]} 7. Nb3 {[%emt 0:00:26]} Be6 {[%emt 0:00:41]} 8. Be3 {[%emt 0:01:43]} Nbd7 {[%emt 0:00:09]} 9. Qd2 {[%emt 0:01:51]} Be7 {[%emt 0:00:06]} 10. O-O-O {[%emt 0:03:42]} O-O {[%emt 0:00:05]} 11. g4 {[%emt 0:00:08]} b5 {[%emt 0:00:03]} 12. h4 {[%emt 0:00:40]} b4 {[%emt 0:01:49]} 13. Na4 {[%emt 0:00:33]} a5 {[%emt 0:02:26]} 14. Bh3 {[%emt 0:01:01]} Qc7 {[%emt 0:01:39]} 15. g5 {[%emt 0:27:09]} Nh5 {[%emt 0:00:19]} 16. g6 {[%emt 0:08:37]} Bxh3 {[%emt 0:04:05]} 17. gxf7+ {[%emt 0:00:46]} Kh8 {[%emt 0:00:48]} 18. Rxh3 {[%emt 0:00:18]} Qc6 {[%emt 0:00:49]} 19. Qd5 {[%emt 0:00:12]} Qxa4 {[%emt 0:02:23]} 20. Qe6 {[%emt 0:00:47]} Bd8 {[%emt 0:04:29]} 21. Rxd6 {[%emt 0:01:41]} Ndf6 {[%emt 0:02:58]} 22. Nc5 {[%emt 0:02:51]} Qb5 {[%emt 0:00:17]} 23. Nd3 {[%emt 0:00:22]} Bc7 {[%emt 0:02:43]} 24. Bc5 {[%emt 0:11:07]} Bxd6 {[%emt 0:00:52]} 25. Bxd6 {[%emt 0:00:08]} Qd7 {[%emt 0:00:25]} 26. Qxe5 Qxh3 {[%emt 0:00:55]} 27. Bxf8 {[%emt 0:01:47]} Rxf8 {[%emt 0:00:08]} 28. Qe7 {[%emt 0:00:04]} Nd7 {[%emt 0:03:38]} 29. e5 {[%emt 0:00:07]} Rc8 {[%emt 0:12:38]} 30. Nf2 {[%emt 0:16:28]} Qf5 {[%emt 0:02:49]} 31. Ne4 {[%emt 0:00:20]} Nf8 {[%emt 0:01:33]} 32. Qb7 {[%emt 0:01:17]} Qf4+ {[%emt 0:00:35]} 33. Kb1 {[%emt 0:00:46]} Qxf3 {[%emt 0:00:17]} 34. a4 {[%emt 0:01:13]} b3 {[%emt 0:00:59]} 35. cxb3 {[%emt 0:01:48]} Qd1+ {[%emt 0:00:06]} 36. Ka2 {[%emt 0:00:06]} Rc1 {[%emt 0:00:10]} 37. Nc3 {[%emt 0:00:04]} Ra1# {[%emt 0:00:06]} 0-1

[Event "1st Sakatam Open 2024"]
[Site "Guwahati"]
[Date "2024.03.27"]
[Round "8.7"]
[White "Arpan Das"]
[Black "Singh Bhogen R K"]
[Result "1-0"]
[ECO "E71"]
[WhiteElo "2374"]
[BlackElo "1854"]
[Annotator "RC"]
[PlyCount "95"]
[EventDate "2024.03.24"]
[EventType "swiss"]
[EventCountry "IND"]
[SourceTitle "playchess.com"]
[Source "ChessBase"]
[SourceQuality "1"]
[TimeControl "5400+30"]

1. d4 {[%emt 0:09:06]} Nf6 {[%emt 0:00:21]} 2. c4 {[%emt 0:00:04]} g6 {[%emt 0:00:16]} 3. Nc3 {[%emt 0:00:04]} Bg7 {[%emt 0:00:06]} 4. e4 {[%emt 0:00:04]} d6 {[%emt 0:00:07]} 5. h3 {[%emt 0:00:07]} O-O {[%emt 0:00:11]} 6. Be3 {[%emt 0:00:04]} e5 {[%emt 0:01:12]} 7. d5 {[%emt 0:00:06]} a5 {[%emt 0:00:11]} 8. g4 {[%emt 0:00:04]} Na6 {[%emt 0:00:10]} 9. Nge2 {[%emt 0:00:32]} h5 {[%emt 0:03:51]} 10. g5 {[%emt 0:01:46]} Nd7 {[%emt 0:02:53]} 11. Ng1 {[%emt 0:00:13]} Ndc5 {[%emt 0:00:06]} 12. Nf3 {[%emt 0:00:44]} Bd7 {[%emt 0:00:08]} 13. Nh4 {[%emt 0:02:23]} c6 {[%emt 0:05:22]} 14. Be2 {[%emt 0:00:47]} cxd5 {[%emt 0:02:50]} 15. Nxd5 {[%emt 0:07:07]} Nxe4 {[%emt 0:09:43]} 16. Rg1 {[%emt 0:00:07]} Nb4 {[%emt 0:02:49]} 17. Bb6 {[%emt 0:08:33]} Qe8 {[%emt 0:01:30]} 18. Nc7 {[%emt 0:01:05]} Qe7 {[%emt 0:00:03]} 19. a3 {[%emt 0:00:50]} Na6 {[%emt 0:03:24]} 20. Nxa8 {[%emt 0:00:13]} Rxa8 {[%emt 0:00:02]} 21. Nxg6 {[%emt 0:01:34]} fxg6 {[%emt 0:04:14]} 22. Qd5+ {[%emt 0:00:09]} Qf7 {[%emt 0:00:48]} 23. Qxe4 {[%emt 0:00:21]} Bxh3 {[%emt 0:02:58]} 24. Bf3 {[%emt 0:00:30]} Rf8 {[%emt 0:00:46]} 25. Qd5 {[%emt 0:04:27]} Be6 {[%emt 0:00:20]} 26. Qxe6 {[%emt 0:00:05]} Qxe6 {[%emt 0:00:34]} 27. Bd5 {[%emt 0:00:04]} Qxd5 {[%emt 0:04:15]} 28. cxd5 {[%emt 0:00:04]} Rc8 {[%emt 0:07:18]} 29. Kd1 {[%emt 0:01:04]} e4 {[%emt 0:01:08]} 30. Rc1 {[%emt 0:00:06]} Re8 31. Rc2 {[%emt 0:00:44]} Re5 {[%emt 0:03:41]} 32. Rd2 {[%emt 0:00:05]} a4 {[%emt 0:00:25]} 33. Ke2 {[%emt 0:00:45]} Bf8 {[%emt 0:00:47]} 34. Be3 {[%emt 0:00:18]} Be7 {[%emt 0:00:40]} 35. b3 {[%emt 0:11:03]} axb3 {[%emt 0:03:20]} 36. Rb1 {[%emt 0:00:01]} b5 {[%emt 0:01:52]} 37. Rxb3 {[%emt 0:00:58]} Nc7 {[%emt 0:08:24]} 38. Ke1 {[%emt 0:00:10]} Kf7 {[%emt 0:00:53]} 39. Bb6 {[%emt 0:08:02]} Nxd5 {[%emt 0:08:57]} 40. Rxb5 {[%emt 0:00:05]} Ke6 {[%emt 0:03:49]} 41. a4 {[%emt 0:03:37]} Rxg5 {[%emt 0:02:03]} 42. Kf1 {[%emt 0:00:31]} h4 {[%emt 0:01:26]} 43. Re2 {[%emt 0:02:57]} h3 {[%emt 0:14:59]} 44. Rxe4+ {[%emt 0:00:30]} Kd7 {[%emt 0:00:03]} 45. Rh4 {[%emt 0:06:33]} Kc6 {[%emt 0:00:00]} 46. Bd4 {[%emt 0:05:04]} Nf4 {[%emt 0:02:56]} 47. Be3 {[%emt 0:04:45]} Rh5 {[%emt 0:01:29]} 48. Rxf4 {[%emt 0:01:30]} 1-0

[Event "1st Sakatam Open 2024"]
[Site "Guwahati"]
[Date "2024.03.27"]
[Round "8.8"]
[White "Pran Govinda Parashar Kashyap"]
[Black "Singh, Soram Rahul"]
[Result "1/2-1/2"]
[ECO "A17"]
[WhiteElo "1734"]
[BlackElo "1898"]
[Annotator "NA COMBH"]
[PlyCount "107"]
[EventDate "2024.03.24"]
[EventType "swiss"]
[EventCountry "IND"]
[SourceTitle "playchess.com"]
[Source "ChessBase"]
[SourceQuality "1"]
[TimeControl "5400+30"]

1. c4 {[%emt 0:00:07]} e6 {[%emt 0:02:07]} 2. g3 {[%emt 0:00:11]} d5 {[%emt 0:00:12]} 3. cxd5 {[%emt 0:00:17]} exd5 {[%emt 0:00:16]} 4. d4 {[%emt 0:01:04]} Nf6 {[%emt 0:00:25]} 5. Bg2 {[%emt 0:00:11]} Bd6 {[%emt 0:01:25]} 6. Nc3 {[%emt 0:01:51]} c6 {[%emt 0:00:15]} 7. a3 {[%emt 0:06:48] A17: English Opening: 1...Nf6 with ...Bb4.} Bf5 {[%emt 0:01:17]} 8. b4 {[%emt 0:00:32]} Nbd7 {[%emt 0:01:06]} 9. Nf3 {[%emt 0:00:39]} h6 {[%emt 0:00:25]} 10. O-O {[%emt 0:00:26]} O-O {[%emt 0:01:09]} 11. b5 {[%emt 0:02:53]} Ne4 {[%emt 0:04:04]} 12. Nxe4 {[%emt 0:06:48]} Bxe4 {[%emt 0:00:51]} 13. bxc6 {[%emt 0:00:59]} bxc6 {[%emt 0:00:05]} 14. Nd2 {[%emt 0:08:20]} Bxg2 {[%emt 0:01:04]} 15. Kxg2 {[%emt 0:02:21]} Qb6 {[%emt 0:00:37]} 16. Nf3 {[%emt 0:01:58]} Rab8 {[%emt 0:04:18]} 17. a4 {[%emt 0:05:17]} Rfe8 {[%emt 0:05:05]} 18. Be3 {[%emt 0:05:16]} Qa6 {[%emt 0:08:12]} 19. Qc2 {[%emt 0:05:58]} Rb4 {[%emt 0:01:33]} 20. Rfc1 $1 {[%emt 0:12:29]} Rc8 {[%emt 0:03:22]} 21. Qd3 {[%emt 0:05:03]} Qxd3 {[%emt 0:04:00]} 22. exd3 {[%emt 0:00:20]} Rb3 {[%emt 0:00:08]} 23. Rc2 {[%emt 0:15:57]} Rxd3 {[%emt 0:06:37]} 24. Rac1 {[%emt 0:00:17]} Nb8 {[%emt 0:01:29]} 25. Ne5 {[%emt 0:06:46]} Bxe5 {[%emt 0:00:37]} 26. dxe5 {[%emt 0:00:02]} d4 {[%emt 0:00:06]} 27. Bd2 {[%emt 0:00:34]} Nd7 {[%emt 0:53:15]} 28. f4 {[%emt 0:06:37]} (28. Bb4 $17 {was worth a try.}) 28... c5 {[%emt 0:00:00]} 29. Bb4 {[%emt 0:00:51]} Nb6 {[%emt 0:00:00]} 30. Rxc5 {[%emt 0:01:31]} Rxc5 {[%emt 0:00:00]} 31. Rxc5 {[%emt 0:01:20]} Rb3 {[%emt 0:00:00]} 32. Ba5 {[%emt 0:00:50]} Rb2+ {[%emt 0:00:00]} 33. Kf3 {[%emt 0:01:08]} d3 {[%emt 0:00:00]} 34. Bxb6 {[%emt 0:00:24]} axb6 {[%emt 0:00:00]} 35. Rb5 {[%emt 0:01:05]} Rxh2 {[%emt 0:00:00]} 36. Rxb6 {[%emt 0:00:07]} Ra2 {[%emt 0:00:00]} 37. Rd6 {[%emt 0:00:15]} d2 {[%emt 0:00:00]} 38. a5 {[%emt 0:00:32]} Ra3+ {[%emt 0:00:00]} 39. Kf2 {[%emt 0:01:06]} Ra2 {[%emt 0:00:00]} 40. Kf3 {[%emt 0:00:01]} Ra3+ {[%emt 0:00:00]} 41. Kf2 {[%emt 0:00:01]} Rxa5 {[%emt 0:00:00]} 42. Rxd2 {[%emt 0:00:05]} Ra3 {[%emt 0:00:00]} 43. Rd8+ {[%emt 0:00:30]} Kh7 {[%emt 0:00:00]} 44. Rd6 {[%emt 0:00:10]} Rb3 {[%emt 0:00:00]} 45. g4 {[%emt 0:00:42]} Rb4 {[%emt 0:00:00]} 46. Kf3 {[%emt 0:00:18]} Rb3+ {[%emt 0:00:00]} 47. Kf2 {[%emt 0:00:01]} Rb2+ {[%emt 0:00:00]} 48. Kf3 {[%emt 0:00:06]} Rb1 {[%emt 0:00:00]} 49. Rd7 {[%emt 0:01:20]} Rb3+ {[%emt 0:00:00]} 50. Kf2 {[%emt 0:01:03]} Kg8 {[%emt 0:00:00]} 51. Rd8+ {[%emt 0:00:06]} Kh7 {[%emt 0:00:00]} 52. Rd7 {[%emt 0:00:05]} Kg8 {[%emt 0:00:00]} 53. Rd8+ {[%emt 0:00:05]} Kh7 {[%emt 0:00:00]} 54. Rd7 $11 {[%emt 0:00:04]} 1/2-1/2

[Event "1st Sakatam Open 2024"]
[Site "Guwahati"]
[Date "2024.03.27"]
[Round "9.1"]
[White "Kumar, Gaurav"]
[Black "Kaustuv, Kundu"]
[Result "1-0"]
[ECO "A15"]
[WhiteElo "2049"]
[BlackElo "2388"]
[Annotator "RC"]
[PlyCount "97"]
[EventDate "2024.03.24"]
[EventType "swiss"]
[EventCountry "IND"]
[SourceTitle "playchess.com"]
[Source "ChessBase"]
[SourceQuality "1"]
[TimeControl "5400+30"]

1. Nf3 {[%emt 0:00:05]} Nf6 {[%emt 0:09:57]} 2. c4 {[%emt 0:00:39]} g6 {[%emt 0:00:18]} 3. b4 {[%emt 0:00:51]} Bg7 {[%emt 0:00:07]} 4. Bb2 {[%emt 0:00:28]} O-O {[%emt 0:01:05]} 5. g3 {[%emt 0:00:15]} Nc6 {[%emt 0:00:31]} 6. Qb3 {[%emt 0:17:26]} e5 {[%emt 0:06:26]} 7. Nxe5 {[%emt 0:06:23]} Nxe5 {[%emt 0:00:22]} 8. Bxe5 {[%emt 0:00:14]} Re8 {[%emt 0:00:05]} 9. Bb2 {[%emt 0:02:40]} a5 {[%emt 0:04:18]} 10. Bg2 {[%emt 0:01:10]} axb4 {[%emt 0:04:43]} 11. e3 {[%emt 0:02:15]} Ne4 {[%emt 0:07:57]} 12. Bxg7 {[%emt 0:11:39]} Kxg7 {[%emt 0:00:15]} 13. d4 {[%emt 0:13:41]} Qf6 {[%emt 0:02:13]} 14. O-O {[%emt 0:01:27]} c5 {[%emt 0:00:30]} 15. Bxe4 {[%emt 0:01:21]} Rxe4 {[%emt 0:02:24]} 16. Nd2 {[%emt 0:00:18]} Re8 {[%emt 0:07:11]} 17. dxc5 {[%emt 0:01:44]} d6 {[%emt 0:00:18]} 18. cxd6 {[%emt 0:03:01]} Qxd6 {[%emt 0:00:23]} 19. Rfd1 {[%emt 0:06:02]} Qc6 {[%emt 0:08:29]} 20. Qxb4 {[%emt 0:02:13]} Bh3 {[%emt 0:00:46]} 21. Qc3+ {[%emt 0:03:02]} Kg8 {[%emt 0:02:08]} 22. f3 {[%emt 0:00:26]} f5 {[%emt 0:13:37]} 23. c5 {[%emt 0:02:09]} Re7 {[%emt 0:02:00]} 24. Kf2 {[%emt 0:01:04]} Rae8 {[%emt 0:02:39]} 25. Re1 {[%emt 0:03:04]} g5 {[%emt 0:02:46]} 26. Rac1 {[%emt 0:06:34]} g4 {[%emt 0:02:16]} 27. Qc4+ {[%emt 0:00:43]} Kh8 {[%emt 0:02:14]} 28. e4 {[%emt 0:03:15]} gxf3 {[%emt 0:01:05]} 29. e5 {[%emt 0:05:09]} Bg4 {[%emt 0:01:04]} 30. h3 {[%emt 0:03:28]} Bxh3 {[%emt 0:01:42]} 31. Nxf3 {[%emt 0:00:13]} Bg4 {[%emt 0:00:18]} 32. Qc3 {[%emt 0:01:22]} Rf8 {[%emt 0:02:09]} 33. e6+ {[%emt 0:01:40]} Kg8 {[%emt 0:00:07]} 34. Ne5 {[%emt 0:00:48]} Qd5 {[%emt 0:02:22]} 35. Nd7 {[%emt 0:00:27]} Rxd7 {[%emt 0:01:43]} 36. exd7 {[%emt 0:00:08]} Qxd7 {[%emt 0:00:05]} 37. Qe3 {[%emt 0:00:55]} Rf7 {[%emt 0:06:19]} 38. Qe8+ {[%emt 0:00:27]} Kg7 {[%emt 0:00:07]} 39. Qe5+ {[%emt 0:00:36]} Kg6 {[%emt 0:01:20]} 40. Qe6+ {[%emt 0:00:30]} Kg7 {[%emt 0:00:07]} 41. Qxd7 {[%emt 0:00:15]} Rxd7 {[%emt 0:00:06]} 42. Rc2 {[%emt 0:00:16]} Kf6 {[%emt 0:00:50]} 43. a4 {[%emt 0:00:16]} Kg5 {[%emt 0:03:12]} 44. a5 {[%emt 0:00:17]} Bd1 {[%emt 0:00:22]} 45. c6 {[%emt 0:01:14]} bxc6 {[%emt 0:00:05]} 46. Rxc6 {[%emt 0:00:07]} Bb3 {[%emt 0:01:47]} 47. a6 {[%emt 0:01:05]} Bd5 {[%emt 0:00:37]} 48. Rc5 {[%emt 0:00:07]} Kg4 {[%emt 0:01:15]} 49. Rd1 {[%emt 0:00:41]} 1-0

[Event "1st Sakatam Open 2024"]
[Site "Guwahati"]
[Date "2024.03.27"]
[Round "9.2"]
[White "Singh, Y. Dhanabir"]
[Black "Balkishan, A.."]
[Result "1-0"]
[ECO "B21"]
[WhiteElo "1996"]
[BlackElo "2108"]
[Annotator "RC"]
[PlyCount "135"]
[EventDate "2024.03.24"]
[EventType "swiss"]
[EventCountry "IND"]
[SourceTitle "playchess.com"]
[Source "ChessBase"]
[SourceQuality "1"]
[TimeControl "5400+30"]

1. e4 {[%emt 0:00:14]} c5 {[%emt 0:01:26]} 2. f4 {[%emt 0:00:17]} d5 {[%emt 0:00:55]} 3. exd5 {[%emt 0:00:14]} Nf6 {[%emt 0:00:36]} 4. Bb5+ {[%emt 0:00:50]} Nbd7 {[%emt 0:00:50]} 5. Nc3 {[%emt 0:01:35]} a6 {[%emt 0:00:15]} 6. Bxd7+ {[%emt 0:00:17]} Qxd7 {[%emt 0:01:09]} 7. Nf3 {[%emt 0:00:57]} Nxd5 {[%emt 0:00:13]} 8. Ne5 {[%emt 0:00:54]} Nxc3 {[%emt 0:01:34]} 9. bxc3 {[%emt 0:00:33]} Qc7 {[%emt 0:00:42]} 10. c4 {[%emt 0:04:34]} g6 {[%emt 0:02:55]} 11. Bb2 {[%emt 0:01:20]} Bg7 {[%emt 0:00:03]} 12. O-O {[%emt 0:00:21]} O-O {[%emt 0:00:18]} 13. a4 {[%emt 0:03:29]} b6 {[%emt 0:00:36]} 14. Bc3 {[%emt 0:01:13]} Bb7 {[%emt 0:06:56]} 15. Qe2 {[%emt 0:00:36]} Rab8 {[%emt 0:20:18]} 16. Rfb1 {[%emt 0:08:03]} f6 {[%emt 0:12:21]} 17. Nd3 {[%emt 0:00:38]} Qc6 {[%emt 0:06:02]} 18. Rf1 {[%emt 0:10:15]} Kh8 {[%emt 0:05:47]} 19. Rf3 {[%emt 0:08:13]} Rfe8 {[%emt 0:09:30]} 20. Re3 {[%emt 0:00:45]} Rbd8 {[%emt 0:00:12]} 21. Qf2 {[%emt 0:09:08]} Kg8 {[%emt 0:06:12]} 22. Re2 {[%emt 0:11:18]} a5 {[%emt 0:04:09]} 23. Qg3 {[%emt 0:01:24]} e6 {[%emt 0:01:14]} 24. Nf2 {[%emt 0:03:08]} Qd7 {[%emt 0:04:01]} 25. Ng4 {[%emt 0:02:58]} Kf7 {[%emt 0:03:38]} 26. Rb1 {[%emt 0:10:12]} h5 {[%emt 0:00:37]} 27. Nf2 {[%emt 0:00:44]} Qxa4 {[%emt 0:03:12]} 28. Rxb6 {[%emt 0:00:25]} Ba8 {[%emt 0:00:11]} 29. d3 {[%emt 0:01:27]} Rb8 {[%emt 0:00:17]} 30. f5 {[%emt 0:02:45]} Rxb6 {[%emt 0:02:10]} 31. Qc7+ {[%emt 0:00:25]} Kg8 {[%emt 0:02:37]} 32. Qxb6 {[%emt 0:00:18]} exf5 {[%emt 0:00:24]} 33. Qxa5 {[%emt 0:08:22]} Qxa5 {[%emt 0:02:55]} 34. Rxe8+ {[%emt 0:00:03]} Kf7 {[%emt 0:00:05]} 35. Bxa5 {[%emt 0:00:30]} Kxe8 {[%emt 0:00:02]} 36. Bb6 {[%emt 0:00:39]} Bf8 {[%emt 0:00:05]} 37. Nd1 {[%emt 0:00:14]} Kd7 {[%emt 0:01:28]} 38. Nc3 {[%emt 0:00:12]} Bc6 {[%emt 0:00:51]} 39. Kf2 {[%emt 0:01:20]} Ke6 {[%emt 0:01:02]} 40. g3 {[%emt 0:01:07]} g5 {[%emt 0:01:16]} 41. Nb5 {[%emt 0:00:24]} Kd7 {[%emt 0:00:45]} 42. Ke3 {[%emt 0:01:21]} Bb7 {[%emt 0:01:00]} 43. c3 {[%emt 0:00:37]} f4+ {[%emt 0:00:35]} 44. gxf4 {[%emt 0:00:30]} g4 {[%emt 0:00:01]} 45. d4 {[%emt 0:01:27]} Bh1 {[%emt 0:00:12]} 46. Kf2 {[%emt 0:05:30]} h4 {[%emt 0:00:07]} 47. Bxc5 {[%emt 0:01:11]} Bxc5 {[%emt 0:00:59]} 48. dxc5 {[%emt 0:00:02]} Kc6 {[%emt 0:00:26]} 49. Nd4+ {[%emt 0:00:43]} Kxc5 {[%emt 0:00:08]} 50. Nf5 {[%emt 0:00:13]} Kxc4 {[%emt 0:01:39]} 51. Nxh4 {[%emt 0:00:26]} Be4 {[%emt 0:00:18]} 52. f5 {[%emt 0:01:00]} Kxc3 {[%emt 0:00:05]} 53. Kg3 {[%emt 0:00:14]} Kd4 {[%emt 0:00:41]} 54. Kxg4 {[%emt 0:00:11]} Ke5 {[%emt 0:00:07]} 55. Ng6+ {[%emt 0:00:20]} Kd6 {[%emt 0:00:01]} 56. h4 {[%emt 0:01:00]} Bd5 {[%emt 0:00:23]} 57. h5 {[%emt 0:00:35]} Bg8 {[%emt 0:00:21]} 58. h6 {[%emt 0:00:15]} Kd7 {[%emt 0:00:41]} 59. h7 {[%emt 0:00:34]} Bxh7 {[%emt 0:00:05]} 60. Nf8+ {[%emt 0:00:06]} Ke7 {[%emt 0:00:04]} 61. Nxh7 {[%emt 0:00:10]} Kf7 {[%emt 0:00:02]} 62. Kh5 {[%emt 0:00:12]} Kg7 {[%emt 0:00:02]} 63. Nf8 {[%emt 0:00:15]} Kxf8 {[%emt 0:00:55]} 64. Kg6 {[%emt 0:00:05]} Kg8 {[%emt 0:00:05]} 65. Kxf6 {[%emt 0:00:13]} Kf8 {[%emt 0:00:09]} 66. Ke6 {[%emt 0:00:05]} Ke8 {[%emt 0:00:03]} 67. f6 {[%emt 0:00:10]} Kf8 {[%emt 0:00:02]} 68. f7 {[%emt 0:00:05]} 1-0

[Event "1st Sakatam Open 2024"]
[Site "Guwahati"]
[Date "2024.03.27"]
[Round "9.3"]
[White "Chandreyee, Hajra"]
[Black "Arpan Das"]
[Result "1/2-1/2"]
[ECO "D94"]
[WhiteElo "1912"]
[BlackElo "2374"]
[Annotator "RC"]
[PlyCount "130"]
[EventDate "2024.03.24"]
[EventType "swiss"]
[EventCountry "IND"]
[SourceTitle "playchess.com"]
[Source "ChessBase"]
[SourceQuality "1"]
[TimeControl "5400+30"]

1. e4 {[%emt 0:00:04]} c6 {[%emt 0:05:09]} 2. c4 {[%emt 0:00:05]} d5 {[%emt 0:00:04]} 3. cxd5 {[%emt 0:00:06]} cxd5 {[%emt 0:00:04]} 4. exd5 {[%emt 0:00:07]} Nf6 {[%emt 0:00:05]} 5. Nc3 {[%emt 0:00:06]} Nxd5 {[%emt 0:00:16]} 6. Bc4 {[%emt 0:00:09]} Nb6 {[%emt 0:02:13]} 7. Bb3 {[%emt 0:00:55]} g6 {[%emt 0:02:41]} 8. Nf3 {[%emt 0:00:59]} Bg7 {[%emt 0:00:08]} 9. d4 {[%emt 0:00:46]} O-O {[%emt 0:00:35]} 10. O-O {[%emt 0:00:44]} Nc6 {[%emt 0:03:28]} 11. Bg5 {[%emt 0:09:15]} h6 {[%emt 0:04:43]} 12. Be3 {[%emt 0:09:07]} Na5 {[%emt 0:07:41]} 13. Bc2 {[%emt 0:05:35]} Be6 {[%emt 0:26:04]} 14. Qc1 {[%emt 0:05:03]} Kh7 {[%emt 0:00:56]} 15. h4 {[%emt 0:01:09]} Qc8 {[%emt 0:07:12]} 16. h5 {[%emt 0:05:38]} Bf5 {[%emt 0:01:24]} 17. Ne5 {[%emt 0:02:53]} Nac4 {[%emt 0:05:13]} 18. Bf4 {[%emt 0:08:05]} Nxe5 {[%emt 0:13:08]} 19. Bxe5 {[%emt 0:02:26]} Bxe5 {[%emt 0:00:37]} 20. hxg6+ {[%emt 0:01:18]} fxg6 {[%emt 0:00:25]} 21. dxe5 {[%emt 0:00:06]} Qe6 {[%emt 0:00:41]} 22. f4 {[%emt 0:03:43]} Rac8 {[%emt 0:01:18]} 23. Bb3 {[%emt 0:01:08]} Nc4 {[%emt 0:02:49]} 24. Kh2 {[%emt 0:03:49]} Qc6 {[%emt 0:03:07]} 25. Bxc4 {[%emt 0:02:28]} Qxc4 {[%emt 0:00:05]} 26. Qe3 {[%emt 0:00:41]} b6 {[%emt 0:00:51]} 27. Ne2 {[%emt 0:02:33]} Qd3 {[%emt 0:04:16]} 28. Rf3 {[%emt 0:03:06]} Qxe3 {[%emt 0:00:53]} 29. Rxe3 {[%emt 0:00:02]} Rc2 {[%emt 0:00:45]} 30. Rc1 {[%emt 0:04:47]} Rfc8 {[%emt 0:06:08]} 31. Rxc2 {[%emt 0:00:49]} Rxc2 {[%emt 0:00:01]} 32. Nd4 {[%emt 0:01:45]} Rxb2 {[%emt 0:00:41]} 33. Nc6 {[%emt 0:02:28]} e6 {[%emt 0:00:43]} 34. Nxa7 {[%emt 0:02:51]} Rxa2 {[%emt 0:00:08]} 35. Nc8 {[%emt 0:01:09]} b5 {[%emt 0:01:17]} 36. Nd6 {[%emt 0:04:41]} b4 {[%emt 0:00:04]} 37. Rb3 {[%emt 0:00:36]} Ra4 {[%emt 0:00:06]} 38. Rb2 {[%emt 0:02:13]} h5 {[%emt 0:02:43]} 39. Nxf5 {[%emt 0:04:16]} gxf5 {[%emt 0:00:03]} 40. g3 {[%emt 0:00:12]} Kg6 {[%emt 0:01:03]} 41. Kh3 {[%emt 0:00:26]} Kh6 {[%emt 0:00:38]} 42. Rb1 {[%emt 0:00:41]} Kg7 {[%emt 0:00:13]} 43. Kh4 {[%emt 0:00:37]} Kg6 {[%emt 0:00:02]} 44. Kh3 {[%emt 0:00:08]} h4 {[%emt 0:01:05]} 45. Kxh4 {[%emt 0:02:39]} Ra8 {[%emt 0:00:06]} 46. Kh3 {[%emt 0:00:37]} Rb8 {[%emt 0:00:38]} 47. Rb3 {[%emt 0:00:04]} Kh5 {[%emt 0:00:29]} 48. Kh2 {[%emt 0:01:15]} Kg4 {[%emt 0:00:06]} 49. Kg2 {[%emt 0:00:05]} Rb7 {[%emt 0:01:12]} 50. Rb2 {[%emt 0:02:20]} Rb8 {[%emt 0:00:37]} 51. Rb3 {[%emt 0:00:14]} Rb7 {[%emt 0:00:06]} 52. Kf2 {[%emt 0:01:45]} Rb6 {[%emt 0:00:24]} 53. Kg2 {[%emt 0:00:31]} Rb8 {[%emt 0:00:39]} 54. Kf2 {[%emt 0:00:32]} Kh3 {[%emt 0:00:53]} 55. Kf3 {[%emt 0:00:33]} Rg8 {[%emt 0:00:18]} 56. Kf2 {[%emt 0:00:19]} Rb8 {[%emt 0:00:33]} 57. Kf3 {[%emt 0:00:07]} Ra8 {[%emt 0:00:14]} 58. Rxb4 {[%emt 0:00:32]} Ra3+ {[%emt 0:00:32]} 59. Kf2 {[%emt 0:00:45]} Ra2+ {[%emt 0:00:11]} 60. Kf3 {[%emt 0:00:28]} Ra3+ {[%emt 0:00:01]} 61. Kf2 {[%emt 0:00:06]} Rxg3 {[%emt 0:00:05]} 62. Rb8 {[%emt 0:00:38]} Rg7 {[%emt 0:00:29]} 63. Rh8+ {[%emt 0:00:17]} Kg4 {[%emt 0:00:06]} 64. Ke3 {[%emt 0:00:11]} Ra7 {[%emt 0:02:24]} 65. Rg8+ {[%emt 0:00:06]} Kh4 {[%emt 0:00:00]} 1/2-1/2